fUSD/lending_fUSD_20250606
["ID","MTS","AMOUNT","RATE_DAILY","PERIOD"]
[364675656,1749195083918,-229.396533,0.00030779,7]
[364675657,1749195083928,-3456.429771,0.00030779,7]
[364675658,1749195083939,-1535.375151,0.00030779,7]
[364675659,1749195083948,-1535.375151,0.00030779,7]
[364675660,1749195083959,-448.366204,0.00030779,7]
[364675661,1749195083968,-448.366204,0.00030779,7]
[364675662,1749195083978,-239.241534,0.00030779,7]
[364675663,1749195083987,-239.241534,0.00030779,7]
[364675664,1749195083997,-151.0,0.00030779,7]
[364675665,1749195084006,-151.0,0.00030779,7]
[364675666,1749195084017,-150.0,0.00030795,7]
[364675667,1749195084026,-386.41901234,0.00030796,2]
[364675668,1749195084036,-1552.0,0.00030796,2]
[364675669,1749195084045,-1387.0,0.00030796,2]
[364675670,1749195084056,-527.0,0.00030796,2]
[364675671,1749195084066,-419.0,0.00030796,2]
[364675672,1749195084075,-514.22,0.00030799,7]
[364675673,1749195084085,-514.22,0.00030799,7]
[364675674,1749195084094,-514.22,0.00030799,7]
[364675675,1749195084103,-514.22,0.00030799,7]
[364675676,1749195084113,-514.23251791,0.00030799,7]
[364675677,1749195084123,-151.0,0.000308,7]
[364675678,1749195084132,-151.0,0.000308,7]
[364675679,1749195084141,-151.0,0.000308,7]
[364675680,1749195084151,-151.0,0.000308,7]
[364675681,1749195084162,-151.0,0.000308,7]
[364675682,1749195084171,-421.134473,0.000308,7]
[364675683,1749195084181,-421.134473,0.000308,7]
[364675684,1749195084190,-335.222175,0.000308,7]
[364675685,1749195084200,-335.222175,0.000308,7]
[364675686,1749195084211,-191.964947,0.000308,7]
[364675687,1749195084220,-191.964947,0.000308,7]
[364675688,1749195084230,-253.567617,0.000308,7]
[364675689,1749195084239,-253.567617,0.000308,7]
[364675690,1749195084250,-176.306048,0.000308,7]
[364675691,1749195084259,-176.306048,0.000308,7]
[364675692,1749195084269,-4173.3873028,0.000308,2]
[364675693,1749195084278,-151.0,0.000308,7]
[364675694,1749195084288,-1120.7871652,0.000308,2]
[364675695,1749195084298,-151.0,0.000308,7]
[364675696,1749195084308,-2744.8708651,0.000308,2]
[364675697,1749195084317,-26812.3389291,0.000308,2]
[364675698,1749195084327,-1098.1984612,0.000308,2]
[364675699,1749195084337,-1721.0360213,0.000308,2]
[364675700,1749195084347,-453.537922,0.000308,7]
[364675701,1749195084357,-453.537922,0.000308,7]
[364675702,1749195084366,-158515.5053799,0.000308,2]
[364675703,1749195084375,-150.0,0.00030805,7]
[364675704,1749195084385,-319.28703344,0.00030806,7]
[364675705,1749195084395,-249.59327405,0.00030806,7]
[364675706,1749195084404,-150.0,0.00030813,7]
[364675707,1749195084415,-4134.43832805,0.00030821,7]
[364675708,1749195084424,-151.0,0.00030821,7]
[364675709,1749195084434,-151.0,0.00030821,7]
[364675710,1749195084444,-151.0,0.00030821,7]
[364675711,1749195084454,-151.0,0.00030821,7]
[364675712,1749195084464,-151.0,0.00030821,7]
[364675713,1749195084473,-549.69134652,0.00030821,7]
[364675714,1749195084483,-480.0,0.00030821,7]
[364675715,1749195084492,-228.79945122,0.00030821,7]
[364675716,1749195084502,-151.0,0.00030821,7]
[364675717,1749195084512,-480.0,0.00030821,7]
[364675718,1749195084521,-480.0,0.00030821,7]
[364675719,1749195084531,-480.0,0.00030821,7]
[364675720,1749195084542,-639.09,0.00030821,7]
[364675721,1749195084551,-480.0,0.00030821,7]
[364675722,1749195084561,-480.0,0.00030821,7]
[364675723,1749195084572,-151.0,0.00030821,7]
[364675724,1749195084582,-289.84791932,0.00030821,7]
[364675725,1749195084592,-501.92709343,0.00030821,7]
[364675726,1749195084602,-480.0,0.00030821,7]
[364675727,1749195084611,-480.0,0.00030821,7]
[364675728,1749195084621,-480.0,0.00030821,7]
[364675729,1749195084630,-421.134473,0.00030821,7]
[364675730,1749195084640,-421.134473,0.00030821,7]
[364675731,1749195084650,-480.0,0.00030821,7]
[364675732,1749195084660,-480.0,0.00030821,7]
[364675733,1749195084670,-535.07,0.00030821,7]
[364675734,1749195084679,-413.98880786,0.00030821,7]
[364675735,1749195084689,-480.0,0.00030821,7]
[364675736,1749195084698,-335.222175,0.00030821,7]
[364675737,1749195084708,-335.222175,0.00030821,7]
[364675738,1749195084717,-480.0,0.00030821,7]
[364675739,1749195084727,-480.0,0.00030821,7]
[364675740,1749195084736,-469.77160494,0.00030821,7]
[364675741,1749195084746,-480.0,0.00030821,7]
[364675742,1749195084755,-607.32,0.00030821,7]
[364675743,1749195084765,-191.964947,0.00030821,7]
[364675744,1749195084774,-191.964947,0.00030821,7]
[364675745,1749195084783,-480.0,0.00030821,7]
[364675746,1749195084793,-480.0,0.00030821,7]
[364675747,1749195084803,-480.0,0.00030821,7]
[364675748,1749195084814,-253.567617,0.00030821,7]
[364675749,1749195084827,-253.567617,0.00030821,7]
[364675750,1749195084836,-480.0,0.00030821,7]
[364675751,1749195084847,-480.0,0.00030821,7]
[364675752,1749195084856,-480.0,0.00030821,7]
[364675753,1749195084865,-480.0,0.00030821,7]
[364675754,1749195084875,-151.0,0.00030821,7]
[364675755,1749195084886,-151.0,0.00030821,7]
[364675756,1749195084896,-151.0,0.00030821,7]
[364675757,1749195084906,-186.346074,0.00030821,7]
[364675758,1749195084916,-480.0,0.00030821,7]
[364675759,1749195084925,-743.81,0.00030821,7]
[364675760,1749195084935,-480.0,0.00030821,7]
[364675761,1749195084944,-480.0,0.00030821,7]
[364675762,1749195084953,-480.0,0.00030821,7]
[364675763,1749195084964,-151.0,0.00030821,7]
[364675764,1749195084974,-151.0,0.00030821,7]
[364675765,1749195084984,-524.59,0.00030821,7]
[364675766,1749195084994,-212.018929,0.00030821,7]
[364675767,1749195085004,-212.018929,0.00030821,7]
[364675768,1749195085013,-212.018929,0.00030821,7]
[364675769,1749195085023,-212.018932,0.00030821,7]
[364675770,1749195085033,-480.0,0.00030821,7]
[364675771,1749195085045,-480.0,0.00030821,7]
[364675772,1749195085055,-480.0,0.00030821,7]
[364675773,1749195085064,-1194.15,0.00030821,7]
[364675774,1749195085074,-480.0,0.00030821,7]
[364675775,1749195085083,-480.0,0.00030821,7]
[364675776,1749195085092,-739.76,0.00030821,7]
[364675777,1749195085102,-151.0,0.00030821,7]
[364675778,1749195085112,-480.0,0.00030821,7]
[364675779,1749195085122,-151.0,0.00030821,7]
[364675780,1749195085131,-151.0,0.00030821,7]
[364675781,1749195085141,-151.0,0.00030821,7]
[364675782,1749195085151,-480.0,0.00030821,7]
[364675783,1749195085162,-480.0,0.00030821,7]
[364675784,1749195085172,-548.8,0.00030821,7]
[364675785,1749195085182,-352.2929355,0.00030821,7]
[364675786,1749195085191,-596.13,0.00030821,7]
[364675787,1749195085201,-728.32,0.00030821,7]
[364675788,1749195085211,-480.0,0.00030821,7]
[364675789,1749195085221,-480.0,0.00030821,7]
[364675790,1749195085230,-480.0,0.00030821,7]
[364675791,1749195085240,-543.43,0.00030821,7]
[364675792,1749195085249,-151.0,0.00030821,7]
[364675793,1749195085259,-151.0,0.00030821,7]
[364675794,1749195085269,-502.62,0.00030821,7]
[364675795,1749195085279,-480.0,0.00030821,7]
[364675796,1749195085288,-480.0,0.00030821,7]
[364675797,1749195085298,-480.0,0.00030821,7]
[364675798,1749195085308,-480.0,0.00030821,7]
[364675799,1749195085317,-480.0,0.00030821,7]
[364675800,1749195085327,-480.0,0.00030821,7]
[364675801,1749195085337,-480.0,0.00030821,7]
[364675802,1749195085346,-486.43,0.00030821,7]
[364675803,1749195085357,-480.0,0.00030821,7]
[364675804,1749195085367,-731.51,0.00030821,30]
[364675805,1749195085377,-480.0,0.00030821,7]
[364675806,1749195085386,-872.44,0.00030821,7]
[364675807,1749195085396,-480.0,0.00030821,7]
[364675808,1749195085405,-480.0,0.00030821,7]
[364675809,1749195085415,-480.0,0.00030821,7]
[364675810,1749195085425,-296.24357066,0.00030821,7]
[364675811,1749195085434,-480.0,0.00030821,7]
[364675812,1749195085444,-844.68,0.00030821,7]
[364675813,1749195085454,-480.0,0.00030821,7]
[364675814,1749195085463,-480.0,0.00030821,7]
[364675815,1749195085473,-936.662706,0.00030821,7]
[364675816,1749195085483,-480.0,0.00030821,7]
[364675817,1749195085492,-480.0,0.00030821,7]
[364675818,1749195085502,-936.66270347,0.00030821,7]
[364675819,1749195085512,-480.0,0.00030821,7]
[364675820,1749195085522,-475.97098415,0.00030821,7]
[364675821,1749195085532,-480.0,0.00030821,7]
[364675822,1749195085542,-480.0,0.00030821,7]
[364675823,1749195085552,-480.0,0.00030821,7]
[364675824,1749195085562,-480.0,0.00030821,7]
[364675825,1749195085572,-151.0,0.00030821,7]
[364675826,1749195085581,-480.0,0.00030821,7]
[364675827,1749195085591,-480.0,0.00030821,7]
[364675828,1749195085602,-480.0,0.00030821,7]
[364675829,1749195085611,-480.0,0.00030821,7]
[364675830,1749195085621,-480.0,0.00030821,7]
[364675831,1749195085631,-889.06,0.00030821,7]
[364675832,1749195085640,-480.0,0.00030821,7]
[364675833,1749195085650,-480.0,0.00030821,7]
[364675834,1749195085660,-480.0,0.00030821,7]
[364675835,1749195085671,-480.0,0.00030821,7]
[364675836,1749195085681,-645.26,0.00030821,7]
[364675837,1749195085692,-480.0,0.00030821,7]
[364675838,1749195085701,-311.64003127,0.00030821,7]
[364675839,1749195085711,-1247.94,0.00030821,7]
[364675840,1749195085721,-760.34,0.00030821,7]
[364675841,1749195085730,-480.0,0.00030821,7]
[364675842,1749195085739,-480.0,0.00030821,7]
[364675843,1749195085749,-767.62,0.00030821,7]
[364675844,1749195085759,-1400.52,0.00030821,7]
[364675845,1749195085768,-495.4,0.00030821,7]
[364675846,1749195085778,-464.67828378,0.00030821,7]
[364675847,1749195085787,-1416.2,0.00030821,7]
[364675848,1749195085797,-480.0,0.00030821,7]
[364675849,1749195085810,-2160.01623,0.00030821,7]
[364675850,1749195085819,-1026.87,0.00030821,7]
[364675851,1749195085829,-772.23,0.00030821,7]
[364675852,1749195085839,-1405.79,0.00030821,7]
[364675853,1749195085850,-704.39,0.00030821,7]
[364675854,1749195086025,-499.27085598,0.00030821,7]
[364675855,1749195086035,-480.0,0.00030821,7]
[364675856,1749195086046,-959.69,0.00030821,7]
[364675857,1749195086056,-534.57,0.00030821,7]
[364675858,1749195086066,-480.0,0.00030821,7]
[364675859,1749195086076,-191.36473,0.00030821,7]
[364675860,1749195086086,-1697.41,0.00030821,7]
[364675861,1749195086095,-191.364727,0.00030821,7]
[364675862,1749195086105,-480.0,0.00030821,7]
[364675863,1749195086115,-151.0,0.00030821,7]
[364675864,1749195086125,-1684.21,0.00030821,7]
[364675865,1749195086134,-627.99,0.00030821,7]
[364675866,1749195086144,-2000.000568,0.00030821,7]
[364675867,1749195086154,-480.0,0.00030821,7]
[364675868,1749195086167,-480.0,0.00030821,7]
[364675869,1749195086178,-654.73,0.00030821,7]
[364675870,1749195086187,-751.32,0.00030821,7]
[364675871,1749195086197,-480.0,0.00030821,7]
[364675872,1749195086207,-480.0,0.00030821,7]
[364675873,1749195086216,-873.28,0.00030821,7]
[364675874,1749195086227,-480.0,0.00030821,7]
[364675875,1749195086236,-480.0,0.00030821,7]
[364675876,1749195086246,-1201.48,0.00030821,7]
[364675877,1749195086255,-480.0,0.00030821,7]
[364675878,1749195086265,-480.0,0.00030821,7]
[364675879,1749195086275,-480.0,0.00030821,7]
[364675880,1749195086284,-480.0,0.00030821,7]
[364675881,1749195086294,-864.22,0.00030821,7]
[364675882,1749195086304,-791.03,0.00030821,7]
[364675883,1749195086314,-480.0,0.00030821,7]
[364675884,1749195086324,-480.0,0.00030821,7]
[364675885,1749195086334,-480.0,0.00030821,7]
[364675886,1749195086343,-480.0,0.00030821,7]
[364675887,1749195086352,-1004.71,0.00030821,7]
[364675888,1749195086362,-863.38,0.00030821,7]
[364675889,1749195086371,-1800.3,0.00030821,7]
[364675890,1749195086381,-480.0,0.00030821,7]
[364675891,1749195086391,-1214.39,0.00030821,7]
[364675892,1749195086401,-480.0,0.00030821,7]
[364675893,1749195086412,-480.0,0.00030821,7]
[364675894,1749195086422,-508.96,0.00030821,7]
[364675895,1749195086431,-480.0,0.00030821,7]
[364675896,1749195086440,-1103.57,0.00030821,7]
[364675897,1749195086450,-480.0,0.00030821,7]
[364675898,1749195086460,-480.0,0.00030821,7]
[364675899,1749195086471,-668.08,0.00030821,7]
[364675900,1749195086483,-1977.82,0.00030821,7]
[364675901,1749195086492,-480.0,0.00030821,7]
[364675902,1749195086502,-480.0,0.00030821,7]
[364675903,1749195086513,-480.0,0.00030821,7]
[364675904,1749195086523,-480.0,0.00030821,7]
[364675905,1749195086533,-480.0,0.00030821,7]
[364675906,1749195086543,-1493.9,0.00030821,7]
[364675907,1749195086553,-603.18,0.00030821,7]
[364675908,1749195086563,-480.0,0.00030821,7]
[364675909,1749195086574,-480.0,0.00030821,7]
[364675910,1749195086583,-1437.75,0.00030821,7]
[364675911,1749195086593,-807.4,0.00030821,7]
[364675912,1749195086603,-480.0,0.00030821,7]
[364675913,1749195086612,-1344.78,0.00030821,7]
[364675914,1749195086622,-608.92,0.00030821,7]
[364675915,1749195086632,-480.0,0.00030821,7]
[364675916,1749195086642,-1484.88,0.00030821,7]
[364675917,1749195086651,-1083.59,0.00030821,7]
[364675918,1749195086662,-480.0,0.00030821,7]
[364675919,1749195086672,-480.0,0.00030821,7]
[364675920,1749195086681,-151.0,0.00030821,7]
[364675921,1749195086691,-507.16,0.00030821,7]
[364675922,1749195086700,-480.0,0.00030821,7]
[364675923,1749195086709,-550.14,0.00030821,7]
[364675924,1749195086719,-480.0,0.00030821,7]
[364675925,1749195086728,-480.0,0.00030821,7]
[364675926,1749195086737,-480.0,0.00030821,7]
[364675927,1749195086747,-1226.95,0.00030821,7]
[364675928,1749195086757,-480.0,0.00030821,7]
[364675929,1749195086766,-582.39738465,0.00030821,7]
[364675930,1749195086775,-2114.94,0.00030821,7]
[364675931,1749195086784,-480.0,0.00030821,7]
[364675932,1749195086795,-480.0,0.00030821,7]
[364675933,1749195086806,-735.75,0.00030821,7]
[364675934,1749195086818,-877.87,0.00030821,7]
[364675935,1749195086827,-176.306048,0.00030821,7]
[364675936,1749195086836,-1277.14,0.00030821,7]
[364675937,1749195086846,-176.306052,0.00030821,7]
[364675938,1749195086855,-480.0,0.00030821,7]
[364675939,1749195086865,-480.0,0.00030821,7]
[364675940,1749195086874,-480.0,0.00030821,7]
[364675941,1749195086883,-480.0,0.00030821,7]
[364675942,1749195086893,-480.0,0.00030821,7]
[364675943,1749195086902,-1290.57,0.00030821,7]
[364675944,1749195086914,-1271.05,0.00030821,7]
[364675945,1749195086923,-826.56,0.00030821,7]
[364675946,1749195086932,-480.0,0.00030821,7]
[364675947,1749195086942,-165.491368,0.00030821,7]
[364675948,1749195086952,-631.37,0.00030821,7]
[364675949,1749195086962,-480.0,0.00030821,7]
[364675950,1749195086971,-165.491376,0.00030821,7]
[364675951,1749195086981,-229.396533,0.00030821,7]
[364675952,1749195086991,-970.2,0.00030821,7]
[364675953,1749195087001,-480.0,0.00030821,7]
[364675954,1749195087010,-229.396533,0.00030821,7]
[364675955,1749195087020,-2539.38,0.00030821,7]
[364675956,1749195087029,-1542.51,0.00030821,7]
[364675957,1749195087038,-151.0,0.00030821,7]
[364675958,1749195087048,-480.0,0.00030821,7]
[364675959,1749195087057,-480.0,0.00030821,7]
[364675960,1749195087066,-1000.0,0.00030821,21]
[364675961,1749195087076,-1163.68,0.00030821,7]
[364675962,1749195087085,-480.0,0.00030821,7]
[364675963,1749195087094,-151.0,0.00030821,7]
[364675964,1749195087104,-858.39,0.00030821,7]
[364675965,1749195087113,-159.500685,0.00030821,7]
[364675966,1749195087122,-914.71,0.00030821,7]
[364675967,1749195087132,-2156.64,0.00030821,7]
[364675968,1749195087140,-915.61,0.00030821,7]
[364675969,1749195087150,-829.68,0.00030821,7]
[364675970,1749195087163,-3456.429771,0.00030821,7]
[364675971,1749195087173,-827.97,0.00030821,7]
[364675972,1749195087182,-498.86195999,0.00030821,7]
[364675973,1749195087191,-480.0,0.00030821,7]
[364675974,1749195087201,-480.0,0.00030821,7]
[364675975,1749195087211,-1713.66,0.00030821,7]
[364675976,1749195087220,-585.77,0.00030821,7]
[364675977,1749195087230,-480.0,0.00030821,7]
[364675978,1749195087239,-739.36,0.00030821,7]
[364675979,1749195087250,-876.27,0.00030821,7]
[364675980,1749195087259,-5400.04,0.00030821,7]
[364675981,1749195087268,-480.0,0.00030821,7]
[364675982,1749195087278,-308.30094484,0.00030821,7]
[364675983,1749195087287,-2278.3,0.00030821,7]
[364675984,1749195087296,-516.58,0.00030821,7]
[364675985,1749195087305,-1129.21,0.00030821,7]
[364675986,1749195087314,-1447.61,0.00030821,7]
[364675987,1749195087324,-480.0,0.00030821,7]
[364675988,1749195087333,-480.0,0.00030821,7]
[364675989,1749195087342,-897.4,0.00030821,7]
[364675990,1749195087352,-1119.97,0.00030821,7]
[364675991,1749195087361,-6870.87,0.00030821,7]
[364675992,1749195087371,-480.0,0.00030821,7]
[364675993,1749195087381,-480.0,0.00030821,7]
[364675994,1749195087390,-2323.71,0.00030821,7]
[364675995,1749195087400,-2610.15,0.00030821,7]
[364675996,1749195087412,-480.0,0.00030821,7]
[364675997,1749195087422,-1362.71,0.00030821,7]
[364675998,1749195087432,-637.38,0.00030821,7]
[364675999,1749195087442,-650.21,0.00030821,7]
[364676000,1749195087452,-2333.08,0.00030821,7]
[364676001,1749195087462,-1310.63,0.00030821,7]
[364676002,1749195087471,-639.4,0.00030821,7]
[364676003,1749195087481,-1535.375151,0.00030821,7]
[364676004,1749195087491,-480.0,0.00030821,7]
[364676005,1749195087502,-588.89,0.00030821,7]
[364676006,1749195087512,-3922.8,0.00030821,7]
[364676007,1749195087522,-836.03,0.00030821,7]
[364676008,1749195087531,-328.43477867,0.00030821,7]
[364676009,1749195087541,-1535.37514737,0.00030821,7]
[364676010,1749195087551,-480.0,0.00030821,7]
[364676011,1749195087561,-1666.57,0.00030821,7]
[364676012,1749195087571,-533.99,0.00030821,7]
[364676013,1749195087582,-480.0,0.00030821,7]
[364676014,1749195087592,-480.0,0.00030821,7]
[364676015,1749195087601,-1353.76,0.00030821,7]
[364676016,1749195087611,-480.0,0.00030821,7]
[364676017,1749195087620,-1524.78,0.00030821,7]
[364676018,1749195087630,-2057.71,0.00030821,7]
[364676019,1749195087639,-1978.82,0.00030821,7]
[364676020,1749195087649,-3977.08,0.00030821,7]
[364676021,1749195087659,-635.04,0.00030821,7]
[364676022,1749195087669,-665.52,0.00030821,7]
[364676023,1749195087679,-1908.77,0.00030821,7]
[364676024,1749195087688,-10873.55,0.00030821,7]
[364676025,1749195087697,-2487.41,0.00030821,7]
[364676026,1749195087707,-1758.02,0.00030821,7]
[364676027,1749195087716,-480.0,0.00030821,7]
[364676028,1749195087726,-489.78113232,0.00030821,7]
[364676029,1749195087736,-2387.99,0.00030821,7]
[364676030,1749195087745,-2639.99,0.00030821,7]
[364676031,1749195087754,-1125.45,0.00030821,7]
[364676032,1749195087763,-1254.76,0.00030821,7]
[364676033,1749195087773,-480.0,0.00030821,7]
[364676034,1749195087783,-791.42,0.00030821,7]
[364676035,1749195087792,-947.63,0.00030821,7]
[364676036,1749195087801,-4581.4,0.00030821,7]
[364676037,1749195087815,-514.28,0.00030821,7]
[364676038,1749195087825,-2500.36,0.00030821,7]
[364676039,1749195087834,-480.0,0.00030821,7]
[364676040,1749195087843,-1679.3,0.00030821,7]
[364676041,1749195087852,-1666.44,0.00030821,7]
[364676042,1749195087861,-576.11,0.00030821,7]
[364676043,1749195087870,-2002.83,0.00030821,7]
[364676044,1749195087879,-1000.0,0.00030821,7]
[364676045,1749195087891,-2964.95,0.00030821,7]
[364676046,1749195087900,-1463.84,0.00030821,7]
[364676047,1749195087910,-480.0,0.00030821,7]
[364676048,1749195087919,-480.0,0.00030821,7]
[364676049,1749195087928,-2141.33,0.00030821,7]
[364676050,1749195087938,-1459.06,0.00030821,7]
[364676051,1749195087947,-3269.76,0.00030821,7]
[364676052,1749195087957,-1061.57,0.00030821,7]
[364676053,1749195087966,-2685.06,0.00030821,7]
[364676054,1749195087975,-480.0,0.00030821,7]
[364676055,1749195087984,-5962.32,0.00030821,7]
[364676056,1749195087993,-4171.06,0.00030821,7]
[364676057,1749195088002,-848.41,0.00030821,7]
[364676058,1749195088013,-1102.24,0.00030821,7]
[364676059,1749195088023,-448.366204,0.00030821,7]
[364676060,1749195088032,-2463.45,0.00030821,7]
[364676061,1749195088041,-448.366202,0.00030821,7]
[364676062,1749195088051,-493.16,0.00030821,7]
[364676063,1749195088060,-577.1,0.00030821,7]
[364676064,1749195088069,-907.782064,0.00030821,7]
[364676065,1749195088078,-1324.81,0.00030821,7]
[364676066,1749195088088,-2024.69,0.00030821,7]
[364676067,1749195088098,-1462.66,0.00030821,2]
[364676068,1749195088107,-17017.79,0.00030821,7]
[364676069,1749195088117,-2126.16,0.00030821,7]
[364676070,1749195088127,-1317.38,0.00030821,7]
[364676071,1749195088138,-907.78205712,0.00030821,7]
[364676072,1749195088148,-4422.82,0.00030821,7]
[364676073,1749195088158,-1523.3,0.00030821,7]
[364676074,1749195088168,-480.0,0.00030821,7]
[364676075,1749195088177,-3713.24,0.00030821,7]
[364676076,1749195088186,-1166.4,0.00030821,7]
[364676077,1749195088196,-1334.57,0.00030821,7]
[364676078,1749195088207,-480.0,0.00030821,7]
[364676079,1749195088216,-984.05,0.00030821,7]
[364676080,1749195088227,-2104.79,0.00030821,7]
[364676081,1749195088237,-6223.16,0.00030821,7]
[364676082,1749195088247,-1264.89,0.00030821,7]
[364676083,1749195088257,-1207.83,0.00030821,7]
[364676084,1749195088266,-2602.39,0.00030821,7]
[364676085,1749195088275,-12037.38,0.00030821,7]
[364676086,1749195088286,-649.09,0.00030821,7]
[364676087,1749195088295,-525.14939861,0.00030821,7]
[364676088,1749195088307,-1829.73,0.00030821,7]
[364676089,1749195088318,-1014.46,0.00030821,7]
[364676090,1749195088328,-1745.74,0.00030821,7]
[364676091,1749195088339,-239.241534,0.00030821,7]
[364676092,1749195088351,-480.0,0.00030821,7]
[364676093,1749195088362,-480.0,0.00030821,7]
[364676094,1749195088372,-239.241526,0.00030821,7]
[364676095,1749195088381,-1071.48,0.00030821,7]
[364676096,1749195088392,-480.0,0.00030821,7]
[364676097,1749195088402,-480.0,0.00030821,7]
[364676098,1749195088412,-1415.9,0.00030821,7]
[364676099,1749195088422,-609.11,0.00030821,7]
[364676100,1749195088432,-10675.65,0.00030821,7]
[364676101,1749195088442,-480.0,0.00030821,7]
[364676102,1749195088452,-892.65,0.00030821,7]
[364676103,1749195088461,-2106.24,0.00030821,7]
[364676104,1749195088470,-2026.78,0.00030821,7]
[364676105,1749195088480,-3353.82,0.00030821,7]
[364676106,1749195088490,-1044.12,0.00030821,7]
[364676107,1749195088658,-2056.04,0.00030821,7]
[364676108,1749195088668,-480.0,0.00030821,7]
[364676109,1749195088679,-1485.03,0.00030821,7]
[364676110,1749195088688,-894.72,0.00030821,7]
[364676111,1749195088698,-5331.78,0.00030821,7]
[364676112,1749195088708,-5244.54,0.00030821,7]
[364676113,1749195088718,-397.07024598,0.00030821,7]
[364676114,1749195088727,-151.0,0.00030821,7]
[364676115,1749195088736,-1252.03,0.00030821,7]
[364676116,1749195088746,-151.0,0.00030821,7]
[364676117,1749195088756,-496.19,0.00030821,7]
[364676118,1749195088765,-2497.24,0.00030821,7]
[364676119,1749195088775,-1074.2,0.00030821,7]
[364676120,1749195088784,-480.0,0.00030821,7]
[364676121,1749195088794,-480.0,0.00030821,7]
[364676122,1749195088805,-480.0,0.00030821,7]
[364676123,1749195088816,-480.0,0.00030821,7]
[364676124,1749195088826,-2043.06,0.00030821,7]
[364676125,1749195088835,-480.0,0.00030821,7]
[364676126,1749195088846,-480.0,0.00030821,7]
[364676127,1749195088855,-480.0,0.00030821,7]
[364676128,1749195088866,-1410.64,0.00030821,7]
[364676129,1749195088876,-721.27,0.00030821,7]
[364676130,1749195088888,-480.0,0.00030821,7]
[364676131,1749195088898,-735.38,0.00030821,7]
[364676132,1749195088908,-1593.16,0.00030821,7]
[364676133,1749195088917,-1896.04,0.00030821,7]
[364676134,1749195088927,-954.54,0.00030821,7]
[364676135,1749195088937,-5092.66,0.00030821,7]
[364676136,1749195088946,-480.0,0.00030821,7]
[364676137,1749195088958,-453.537922,0.00030821,7]
[364676138,1749195088967,-480.0,0.00030821,7]
[364676139,1749195088977,-732.66,0.00030821,7]
[364676140,1749195088987,-480.0,0.00030821,7]
[364676141,1749195088997,-403.82998113,0.00030821,7]
[364676142,1749195089007,-453.537929,0.00030821,7]
[364676143,1749195089017,-2684.8,0.00030821,7]
[364676144,1749195089026,-690.02,0.00030821,7]
[364676145,1749195089036,-749.27,0.00030821,7]
[364676146,1749195089045,-1631.58,0.00030821,7]
[364676147,1749195089054,-621.64,0.00030821,7]
[364676148,1749195089064,-535.31,0.00030821,7]
[364676149,1749195089074,-1384.95,0.00030821,7]
[364676150,1749195089084,-1562.21,0.00030821,7]
[364676151,1749195089093,-480.0,0.00030821,7]
[364676152,1749195089104,-18294.64,0.00030821,7]
[364676153,1749195089114,-894.81,0.00030821,7]
[364676154,1749195089123,-1115.23,0.00030821,7]
[364676155,1749195089133,-4575.79,0.00030821,7]